[Event "*** SCC Grand Prix: Titled Tuesday Blitz"]
[Site "Chess.com"]
[Date "2020.06.02"]
[Round "10"]
[White "Stewie_89"]
[Black "Khamrakulov_Djurabek"]
[Result "1-0"]
[WhiteElo "2636"]
[BlackElo "2788"]
[TimeControl "180+1"]
[EndTime "11:54:28 PDT"]
[Termination "Stewie_89 won by resignation"]

1. e4 {[%clk 0:03:00.9]} 1... c6 {[%clk 0:02:59.7]} 2. d4 {[%clk 0:03:00.2]}
2... d5 {[%clk 0:03:00.2]} 3. Nd2 {[%clk 0:03:00.6]} 3... dxe4 {[%clk
0:02:59.6]} 4. Nxe4 {[%clk 0:03:01.5]} 4... Bf5 {[%clk 0:02:59.6]} 5. Ng3 {[%clk
0:03:01.4]} 5... Bg6 {[%clk 0:02:59.6]} 6. h4 {[%clk 0:03:01.5]} 6... h6 {[%clk
0:02:59.7]} 7. Nh3 {[%clk 0:03:01.8]} 7... e6 {[%clk 0:02:58.4]} 8. Nf4 {[%clk
0:03:01.5]} 8... Bh7 {[%clk 0:02:57.9]} 9. Bc4 {[%clk 0:03:01.9]} 9... Nd7
{[%clk 0:02:56.3]} 10. c3 {[%clk 0:02:59]} 10... Qc7 {[%clk 0:02:55.1]} 11. Be3
{[%clk 0:02:56.4]} 11... Ngf6 {[%clk 0:02:51.8]} 12. Qe2 {[%clk 0:02:51.6]}
12... Bd6 {[%clk 0:02:44.7]} 13. Ngh5 {[%clk 0:02:50.2]} 13... Nxh5 {[%clk
0:02:43.4]} 14. Nxh5 {[%clk 0:02:49.6]} 14... g6 {[%clk 0:02:43.6]} 15. Ng7+
{[%clk 0:02:47]} 15... Kf8 {[%clk 0:02:40.9]} 16. Bxh6 {[%clk 0:02:45.7]} 16...
Ke7 {[%clk 0:02:19.5]} 17. Bg5+ {[%clk 0:02:19]} 17... Kf8 {[%clk 0:02:18.8]}
18. Nxe6+ {[%clk 0:01:37.5]} 18... fxe6 {[%clk 0:02:18.3]} 19. Qxe6 {[%clk
0:01:34]} 1-0

[Event "*** SCC Grand Prix: Titled Tuesday Blitz"]
[Site "Chess.com"]
[Date "2020.06.02"]
[Round "10"]
[White "silverback96"]
[Black "HrvojeZagreb"]
[Result "1/2-1/2"]
[WhiteElo "2198"]
[BlackElo "2104"]
[TimeControl "180+1"]
[EndTime "11:54:42 PDT"]
[Termination "Game drawn by repetition"]

1. e4 {[%clk 0:03:00.9]} 1... d6 {[%clk 0:02:57.5]} 2. d4 {[%clk 0:03:00.3]}
2... Nd7 {[%clk 0:02:57.1]} 3. Nc3 {[%clk 0:03:00.2]} 3... e5 {[%clk 0:02:57.1]}
4. Nf3 {[%clk 0:03:00.2]} 4... Be7 {[%clk 0:02:54.2]} 5. Bc4 {[%clk 0:02:58.5]}
5... Ngf6 {[%clk 0:02:53.5]} 6. Bxf7+ {[%clk 0:02:56.2]} 6... Kxf7 {[%clk
0:02:53.1]} 7. Ng5+ {[%clk 0:02:56.8]} 7... Kg8 {[%clk 0:02:50.6]} 8. Ne6 {[%clk
0:02:57.7]} 8... Qe8 {[%clk 0:02:50.3]} 9. Nxc7 {[%clk 0:02:57.8]} 9... Qg6
{[%clk 0:02:50]} 10. Nxa8 {[%clk 0:02:57.1]} 10... Qxg2 {[%clk 0:02:48.7]} 11.
Rf1 {[%clk 0:02:56.3]} 11... Ng4 {[%clk 0:02:21.1]} 12. Qe2 {[%clk 0:02:49.9]}
12... exd4 {[%clk 0:02:15.4]} 13. Qc4+ {[%clk 0:02:47.2]} 13... Kf8 {[%clk
0:02:10.2]} 14. Qxc8+ {[%clk 0:02:47.3]} 14... Kf7 {[%clk 0:02:10.5]} 15. Qxd7
{[%clk 0:02:38.3]} 15... dxc3 {[%clk 0:01:56.7]} 16. Qf5+ {[%clk 0:02:34]} 16...
Bf6 {[%clk 0:01:51.7]} 17. Nc7 {[%clk 0:02:31.2]} 17... Nxh2 {[%clk 0:01:37.5]}
18. Qe6+ {[%clk 0:02:28.5]} 18... Kg6 {[%clk 0:01:35.5]} 19. Qf5+ {[%clk
0:02:28.3]} 19... Kf7 {[%clk 0:01:35.5]} 20. Qd5+ {[%clk 0:02:13.6]} 20... Kg6
{[%clk 0:01:21.5]} 21. Qf5+ {[%clk 0:02:04.5]} 21... Kf7 {[%clk 0:01:18.9]}
1/2-1/2

[Event "*** SCC Grand Prix: Titled Tuesday Blitz"]
[Site "Chess.com"]
[Date "2020.06.02"]
[Round "10"]
[White "2346PL"]
[Black "Jojo_1608"]
[Result "1-0"]
[WhiteElo "2455"]
[BlackElo "2190"]
[TimeControl "180+1"]
[EndTime "11:54:44 PDT"]
[Termination "2346PL won by resignation"]

1. d4 {[%clk 0:03:00.9]} 1... Nf6 {[%clk 0:02:59.6]} 2. Bg5 {[%clk 0:03:00.9]}
2... c5 {[%clk 0:02:55.3]} 3. c3 {[%clk 0:02:59.3]} 3... cxd4 {[%clk 0:02:54.2]}
4. cxd4 {[%clk 0:02:59.4]} 4... g6 {[%clk 0:02:53.4]} 5. Bxf6 {[%clk 0:02:56.8]}
5... exf6 {[%clk 0:02:53]} 6. Nc3 {[%clk 0:02:55.4]} 6... Bg7 {[%clk 0:02:52.2]}
7. e3 {[%clk 0:02:54.9]} 7... O-O {[%clk 0:02:52.3]} 8. g3 {[%clk 0:02:55.1]}
8... f5 {[%clk 0:02:52.5]} 9. Bg2 {[%clk 0:02:55.3]} 9... f4 {[%clk 0:02:44.3]}
10. gxf4 {[%clk 0:02:54.7]} 10... Re8 {[%clk 0:02:33.8]} 11. h4 {[%clk
0:02:50.9]} 11... Qb6 {[%clk 0:02:29.2]} 12. Nd5 {[%clk 0:02:40.9]} 12... Qxb2
{[%clk 0:02:06.4]} 13. Ne2 {[%clk 0:02:40.5]} 13... Na6 {[%clk 0:01:55.6]} 14.
O-O {[%clk 0:02:36.1]} 14... d6 {[%clk 0:01:53.8]} 15. h5 {[%clk 0:02:32.2]}
15... Qa3 {[%clk 0:01:48.4]} 16. h6 {[%clk 0:02:30]} 16... Bh8 {[%clk
0:01:46.7]} 17. Ng3 {[%clk 0:02:25.8]} 17... Be6 {[%clk 0:01:34.2]} 18. f5
{[%clk 0:02:24.1]} 18... Bd7 {[%clk 0:01:27.6]} 19. f6 {[%clk 0:02:21.2]} 19...
Bc6 {[%clk 0:01:26.2]} 20. Ne7+ {[%clk 0:02:19]} 20... Kf8 {[%clk 0:01:25.1]}
21. Nxc6 {[%clk 0:02:14]} 21... bxc6 {[%clk 0:01:24.6]} 22. Bxc6 {[%clk
0:02:14.1]} 22... Bxf6 {[%clk 0:01:24.6]} 23. Qf3 {[%clk 0:02:04.2]} 1-0

[Event "*** SCC Grand Prix: Titled Tuesday Blitz"]
[Site "Chess.com"]
[Date "2020.06.02"]
[Round "10"]
[White "SantoBlue"]
[Black "Niclox"]
[Result "0-1"]
[WhiteElo "2786"]
[BlackElo "2704"]
[TimeControl "180+1"]
[EndTime "11:54:51 PDT"]
[Termination "Niclox won by resignation"]

1. e4 {[%clk 0:03:00.9]} 1... c5 {[%clk 0:02:59.7]} 2. Nf3 {[%clk 0:02:58.9]}
2... d6 {[%clk 0:02:59.6]} 3. d4 {[%clk 0:02:59.1]} 3... cxd4 {[%clk 0:03:00.5]}
4. Nxd4 {[%clk 0:03:00]} 4... Nf6 {[%clk 0:03:00.1]} 5. Nc3 {[%clk 0:03:00.3]}
5... g6 {[%clk 0:03:00.4]} 6. Be3 {[%clk 0:03:00]} 6... Bg7 {[%clk 0:03:00.7]}
7. f3 {[%clk 0:03:00.5]} 7... O-O {[%clk 0:03:00.8]} 8. Qd2 {[%clk 0:03:00.6]}
8... Nc6 {[%clk 0:03:01.7]} 9. O-O-O {[%clk 0:03:00.4]} 9... Nxd4 {[%clk
0:03:02]} 10. Bxd4 {[%clk 0:03:00.3]} 10... Be6 {[%clk 0:03:02.9]} 11. g4 {[%clk
0:03:00]} 11... Qa5 {[%clk 0:03:02.7]} 12. Kb1 {[%clk 0:02:59.3]} 12... Rfc8
{[%clk 0:03:02.6]} 13. a3 {[%clk 0:02:56.8]} 13... Rab8 {[%clk 0:03:02]} 14. h4
{[%clk 0:02:42.5]} 14... b5 {[%clk 0:03:01.6]} 15. h5 {[%clk 0:02:34.3]} 15...
b4 {[%clk 0:02:58.2]} 16. Nd5 {[%clk 0:02:22]} 16... Nxd5 {[%clk 0:02:56.3]} 17.
exd5 {[%clk 0:02:14.2]} 17... Qxd5 {[%clk 0:02:57.2]} 18. b3 {[%clk 0:01:52.6]}
18... bxa3 {[%clk 0:02:31.4]} 19. Bxg7 {[%clk 0:01:50.9]} 19... Rxb3+ {[%clk
0:02:25.2]} 20. cxb3 {[%clk 0:01:33.5]} 20... Qxb3+ {[%clk 0:02:26.1]} 21. Ka1
{[%clk 0:01:12.5]} 21... Rc2 {[%clk 0:02:23.4]} 0-1

[Event "*** SCC Grand Prix: Titled Tuesday Blitz"]
[Site "Chess.com"]
[Date "2020.06.02"]
[Round "10"]
[White "Natalya_Buksa"]
[Black "ErikRonka"]
[Result "1-0"]
[WhiteElo "2565"]
[BlackElo "2403"]
[TimeControl "180+1"]
[EndTime "11:55:05 PDT"]
[Termination "Natalya_Buksa won by resignation"]

1. d4 {[%clk 0:03:00.9]} 1... Nf6 {[%clk 0:02:56.1]} 2. Nc3 {[%clk 0:03:01.1]}
2... d5 {[%clk 0:02:55.6]} 3. Bf4 {[%clk 0:03:01.3]} 3... a6 {[%clk 0:02:55.8]}
4. e3 {[%clk 0:03:01.3]} 4... e6 {[%clk 0:02:53.7]} 5. Nf3 {[%clk 0:03:01.7]}
5... c5 {[%clk 0:02:53.8]} 6. Ne5 {[%clk 0:03:01.6]} 6... Be7 {[%clk 0:02:53.1]}
7. Be2 {[%clk 0:03:01.4]} 7... Nc6 {[%clk 0:02:53]} 8. O-O {[%clk 0:03:01.6]}
8... O-O {[%clk 0:02:53]} 9. Nxc6 {[%clk 0:03:01.1]} 9... bxc6 {[%clk
0:02:53.1]} 10. b3 {[%clk 0:03:01.4]} 10... cxd4 {[%clk 0:02:49.1]} 11. exd4
{[%clk 0:03:02.3]} 11... c5 {[%clk 0:02:49.6]} 12. Na4 {[%clk 0:02:59.7]} 12...
cxd4 {[%clk 0:02:47.3]} 13. Qxd4 {[%clk 0:03:00.6]} 13... Ne4 {[%clk 0:02:38.8]}
14. Rad1 {[%clk 0:02:58.4]} 14... Bf6 {[%clk 0:02:37.5]} 15. Be5 {[%clk
0:02:58.8]} 15... Bxe5 {[%clk 0:02:36.1]} 16. Qxe5 {[%clk 0:02:59.7]} 16... Bd7
{[%clk 0:02:33.3]} 17. Bf3 {[%clk 0:02:56.4]} 17... Bxa4 {[%clk 0:02:19.5]} 18.
Bxe4 {[%clk 0:02:56.5]} 18... Bc6 {[%clk 0:02:10.1]} 19. c4 {[%clk 0:02:54.5]}
19... Qa5 {[%clk 0:02:04.3]} 20. Bb1 {[%clk 0:02:52.9]} 20... Rad8 {[%clk
0:01:55.8]} 21. Rd4 {[%clk 0:02:51.6]} 21... Qb6 {[%clk 0:01:51]} 22. Rh4 {[%clk
0:02:43.4]} 22... g6 {[%clk 0:01:50.2]} 23. Qg5 {[%clk 0:02:37.8]} 23... f6
{[%clk 0:01:44.8]} 24. Qg4 {[%clk 0:02:35.2]} 24... f5 {[%clk 0:01:30]} 25. Qe2
{[%clk 0:02:23.4]} 25... Ba8 {[%clk 0:01:29.2]} 26. Re1 {[%clk 0:02:17.7]} 26...
Rfe8 {[%clk 0:01:27]} 27. Qe5 {[%clk 0:02:14.7]} 27... dxc4 {[%clk 0:01:23.3]}
28. Rxc4 {[%clk 0:02:15.6]} 28... Bd5 {[%clk 0:01:04.7]} 29. Rc7 {[%clk
0:02:13.6]} 1-0

[Event "*** SCC Grand Prix: Titled Tuesday Blitz"]
[Site "Chess.com"]
[Date "2020.06.02"]
[Round "10"]
[White "zurzan"]
[Black "Margarita2907"]
[Result "0-1"]
[WhiteElo "1909"]
[BlackElo "2059"]
[TimeControl "180+1"]
[EndTime "11:55:17 PDT"]
[Termination "Margarita2907 won by resignation"]

1. f4 {[%clk 0:03:00.9]} 1... d5 {[%clk 0:02:59.1]} 2. Nf3 {[%clk 0:03:00.1]}
2... c6 {[%clk 0:02:55]} 3. g3 {[%clk 0:03:00.1]} 3... g6 {[%clk 0:02:48.7]} 4.
Bg2 {[%clk 0:03:01]} 4... Bg7 {[%clk 0:02:48.8]} 5. O-O {[%clk 0:03:01.5]} 5...
Nd7 {[%clk 0:02:47.5]} 6. d3 {[%clk 0:03:01.3]} 6... e5 {[%clk 0:02:46.6]} 7.
fxe5 {[%clk 0:02:59.8]} 7... Nxe5 {[%clk 0:02:46.5]} 8. Nc3 {[%clk 0:02:54.4]}
8... Ne7 {[%clk 0:02:45.7]} 9. Bf4 {[%clk 0:02:46.9]} 9... Nxf3+ {[%clk
0:02:44.2]} 10. Bxf3 {[%clk 0:02:46.1]} 10... O-O {[%clk 0:02:44.1]} 11. e4
{[%clk 0:02:42.1]} 11... dxe4 {[%clk 0:02:42]} 12. Bxe4 {[%clk 0:02:37.8]} 12...
Qb6+ {[%clk 0:02:39.6]} 13. Kg2 {[%clk 0:02:32.7]} 13... Qxb2 {[%clk 0:02:38.4]}
14. Na4 {[%clk 0:02:14.5]} 14... Qb4 {[%clk 0:02:35.7]} 15. c3 {[%clk
0:02:09.2]} 15... Bxc3 {[%clk 0:02:25]} 16. Nxc3 {[%clk 0:02:05.9]} 16... Qxc3
{[%clk 0:02:24.1]} 17. Bd6 {[%clk 0:01:58.5]} 17... Re8 {[%clk 0:02:17.9]} 18.
Rc1 {[%clk 0:01:56.5]} 18... Qb2+ {[%clk 0:02:16.1]} 19. Rf2 {[%clk 0:01:53.8]}
19... Qd4 {[%clk 0:02:10.7]} 20. Bc5 {[%clk 0:01:44.9]} 20... Qe5 {[%clk
0:02:07]} 21. Qf3 {[%clk 0:01:42.3]} 21... Nf5 {[%clk 0:01:49.6]} 22. d4 {[%clk
0:01:37.4]} 22... Qxe4 {[%clk 0:01:46.4]} 23. Qxe4 {[%clk 0:01:29.6]} 23... Rxe4
{[%clk 0:01:46.7]} 24. Rcf1 {[%clk 0:01:14.4]} 24... Ne3+ {[%clk 0:01:46]} 0-1

[Event "*** SCC Grand Prix: Titled Tuesday Blitz"]
[Site "Chess.com"]
[Date "2020.06.02"]
[Round "10"]
[White "vasblesk"]
[Black "barbara25"]
[Result "1-0"]
[WhiteElo "2410"]
[BlackElo "2235"]
[TimeControl "180+1"]
[EndTime "11:55:32 PDT"]
[Termination "vasblesk won by resignation"]

1. d4 {[%clk 0:02:58.5]} 1... d5 {[%clk 0:02:59.6]} 2. c4 {[%clk 0:02:58.1]}
2... c6 {[%clk 0:02:58.9]} 3. cxd5 {[%clk 0:02:57.3]} 3... cxd5 {[%clk
0:02:58.7]} 4. Nc3 {[%clk 0:02:58.2]} 4... Nf6 {[%clk 0:02:58.9]} 5. Bf4 {[%clk
0:02:57.6]} 5... Bf5 {[%clk 0:02:56.2]} 6. e3 {[%clk 0:02:57.2]} 6... Nc6 {[%clk
0:02:56.2]} 7. Nf3 {[%clk 0:02:55.4]} 7... e6 {[%clk 0:02:56.3]} 8. Be2 {[%clk
0:02:53]} 8... Bb4 {[%clk 0:02:55.1]} 9. O-O {[%clk 0:02:52.4]} 9... O-O {[%clk
0:02:55]} 10. Rc1 {[%clk 0:02:51.1]} 10... a6 {[%clk 0:02:54.6]} 11. a3 {[%clk
0:02:50.9]} 11... Bd6 {[%clk 0:02:54.1]} 12. Bg3 {[%clk 0:02:50.2]} 12... Ne4
{[%clk 0:02:53.5]} 13. Nxe4 {[%clk 0:02:46.9]} 13... Bxe4 {[%clk 0:02:53.6]} 14.
Nd2 {[%clk 0:02:46.3]} 14... Bg6 {[%clk 0:02:53.3]} 15. Nb3 {[%clk 0:02:45]}
15... Bxg3 {[%clk 0:02:52.7]} 16. hxg3 {[%clk 0:02:45.9]} 16... Qe7 {[%clk
0:02:51.9]} 17. Nc5 {[%clk 0:02:45.8]} 17... f5 {[%clk 0:02:51.5]} 18. Nxa6
{[%clk 0:02:44.6]} 18... bxa6 {[%clk 0:02:49.9]} 19. Rxc6 {[%clk 0:02:44.3]}
19... a5 {[%clk 0:02:50.3]} 20. Qc2 {[%clk 0:02:42.1]} 20... Rfb8 {[%clk
0:02:49.5]} 21. Rc1 {[%clk 0:02:40.6]} 21... h6 {[%clk 0:02:48.2]} 22. Rc7
{[%clk 0:02:40.4]} 22... Qf6 {[%clk 0:02:48.1]} 23. Bd3 {[%clk 0:02:35.6]} 23...
a4 {[%clk 0:02:44.3]} 24. Rc5 {[%clk 0:02:16.8]} 24... Kh7 {[%clk 0:02:41.9]}
25. f4 {[%clk 0:02:10.6]} 25... Rb3 {[%clk 0:02:41.3]} 26. Rb5 {[%clk
0:02:03.3]} 26... Rxb5 {[%clk 0:02:26]} 27. Bxb5 {[%clk 0:02:04.2]} 27... h5
{[%clk 0:02:24.1]} 28. Kf2 {[%clk 0:02:02.1]} 28... Be8 {[%clk 0:02:14.1]} 29.
Bxe8 {[%clk 0:01:59.3]} 29... Rxe8 {[%clk 0:02:14]} 30. Qxa4 {[%clk 0:01:59.9]}
30... Rb8 {[%clk 0:02:13]} 31. b4 {[%clk 0:01:59.7]} 31... Kg6 {[%clk
0:02:11.4]} 32. Qd7 {[%clk 0:01:51.7]} 32... Ra8 {[%clk 0:02:04]} 33. Rc6 {[%clk
0:01:49]} 33... Kh7 {[%clk 0:02:03.7]} 34. Rxe6 {[%clk 0:01:43]} 34... Qf8
{[%clk 0:02:03.3]} 35. Re5 {[%clk 0:01:29.2]} 35... Rxa3 {[%clk 0:01:49.9]} 36.
Qxf5+ {[%clk 0:01:27.2]} 36... Qxf5 {[%clk 0:01:49.6]} 37. Rxf5 {[%clk
0:01:28.1]} 1-0

[Event "*** SCC Grand Prix: Titled Tuesday Blitz"]
[Site "Chess.com"]
[Date "2020.06.02"]
[Round "10"]
[White "PauloCesarCosta_sad"]
[Black "fischercapa"]
[Result "1-0"]
[WhiteElo "2219"]
[BlackElo "2337"]
[TimeControl "180+1"]
[EndTime "11:55:40 PDT"]
[Termination "PauloCesarCosta_sad won by checkmate"]

1. Nf3 {[%clk 0:03:00.9]} 1... Nf6 {[%clk 0:02:58.5]} 2. c4 {[%clk 0:03:00.7]}
2... e6 {[%clk 0:02:55.2]} 3. g3 {[%clk 0:03:00.9]} 3... b6 {[%clk 0:02:55.5]}
4. Bg2 {[%clk 0:03:01.1]} 4... Bb7 {[%clk 0:02:56.4]} 5. O-O {[%clk 0:03:01.6]}
5... c5 {[%clk 0:02:57]} 6. Nc3 {[%clk 0:03:01.9]} 6... Be7 {[%clk 0:02:56.3]}
7. d4 {[%clk 0:03:02.3]} 7... cxd4 {[%clk 0:02:56.9]} 8. Qxd4 {[%clk 0:03:02.7]}
8... O-O {[%clk 0:02:56.2]} 9. Bg5 {[%clk 0:03:02]} 9... Nc6 {[%clk 0:02:54.7]}
10. Qf4 {[%clk 0:02:51.1]} 10... h6 {[%clk 0:02:47.8]} 11. Bxf6 {[%clk
0:02:27.3]} 11... Bxf6 {[%clk 0:02:47.3]} 12. Rac1 {[%clk 0:02:27.8]} 12... a6
{[%clk 0:02:43.8]} 13. Rfd1 {[%clk 0:02:18.2]} 13... Rc8 {[%clk 0:02:26.3]} 14.
e3 {[%clk 0:02:18.1]} 14... Re8 {[%clk 0:02:13]} 15. Ne4 {[%clk 0:02:07.4]}
15... Bxb2 {[%clk 0:02:06.8]} 16. Nd6 {[%clk 0:02:05.9]} 16... Bxc1 {[%clk
0:02:00.9]} 17. Qxf7+ {[%clk 0:01:57]} 17... Kh7 {[%clk 0:01:57.9]} 18. Nxb7
{[%clk 0:01:47.1]} 18... Qc7 {[%clk 0:01:30.4]} 19. Rxd7 {[%clk 0:01:46.6]}
19... Re7 {[%clk 0:01:27.2]} 20. Rxc7 {[%clk 0:01:39.4]} 20... Rcxc7 {[%clk
0:01:27.7]} 21. Ng5+ {[%clk 0:01:14.8]} 21... hxg5 {[%clk 0:01:20.3]} 22. Be4+
{[%clk 0:01:14.8]} 22... Kh8 {[%clk 0:01:17.2]} 23. Qf8# {[%clk 0:01:13.1]} 1-0

[Event "*** SCC Grand Prix: Titled Tuesday Blitz"]
[Site "Chess.com"]
[Date "2020.06.02"]
[Round "10"]
[White "tylityli"]
[Black "Loiacono_Antonio"]
[Result "1-0"]
[WhiteElo "2291"]
[BlackElo "2388"]
[TimeControl "180+1"]
[EndTime "11:55:45 PDT"]
[Termination "tylityli won by resignation"]

1. d4 {[%clk 0:02:51.2]} 1... Nf6 {[%clk 0:02:58.7]} 2. c4 {[%clk 0:02:51.1]}
2... e6 {[%clk 0:02:59.1]} 3. Nc3 {[%clk 0:02:50.8]} 3... Bb4 {[%clk 0:02:59.6]}
4. e3 {[%clk 0:02:50.5]} 4... O-O {[%clk 0:02:59.3]} 5. Ne2 {[%clk 0:02:50.2]}
5... d6 {[%clk 0:02:59.8]} 6. a3 {[%clk 0:02:49.5]} 6... Bxc3+ {[%clk
0:02:59.9]} 7. Nxc3 {[%clk 0:02:48.4]} 7... e5 {[%clk 0:03:00.8]} 8. d5 {[%clk
0:02:47.2]} 8... Nbd7 {[%clk 0:02:57.9]} 9. e4 {[%clk 0:02:47]} 9... a5 {[%clk
0:02:58.1]} 10. Bd3 {[%clk 0:02:40.3]} 10... Nc5 {[%clk 0:02:57.4]} 11. Bc2
{[%clk 0:02:40.4]} 11... Bd7 {[%clk 0:02:57]} 12. Be3 {[%clk 0:02:36.1]} 12...
Ne8 {[%clk 0:02:54.3]} 13. b4 {[%clk 0:02:26.4]} 13... axb4 {[%clk 0:02:53.6]}
14. axb4 {[%clk 0:02:26]} 14... Rxa1 {[%clk 0:02:53.5]} 15. Qxa1 {[%clk
0:02:25.9]} 15... Na6 {[%clk 0:02:54.4]} 16. Qb1 {[%clk 0:02:21.4]} 16... f5
{[%clk 0:02:52.5]} 17. exf5 {[%clk 0:02:20.1]} 17... Qf6 {[%clk 0:02:51.4]} 18.
O-O {[%clk 0:01:58.6]} 18... Bxf5 {[%clk 0:02:50.6]} 19. Bxf5 {[%clk 0:01:57.5]}
19... Qxf5 {[%clk 0:02:51.5]} 20. Qxf5 {[%clk 0:01:56.6]} 20... Rxf5 {[%clk
0:02:52.4]} 21. Rb1 {[%clk 0:01:54.6]} 21... Rf8 {[%clk 0:02:49.7]} 22. f3
{[%clk 0:01:45]} 22... Nf6 {[%clk 0:02:48.8]} 23. h3 {[%clk 0:01:42.9]} 23...
Ra8 {[%clk 0:02:48.2]} 24. Ra1 {[%clk 0:01:40.4]} 24... c6 {[%clk 0:02:44.6]}
25. dxc6 {[%clk 0:01:33.7]} 25... bxc6 {[%clk 0:02:45.5]} 26. b5 {[%clk
0:01:32.9]} 26... cxb5 {[%clk 0:02:45.2]} 27. cxb5 {[%clk 0:01:32]} 27... Nc7
{[%clk 0:02:45.4]} 28. Rxa8+ {[%clk 0:01:30.5]} 28... Nxa8 {[%clk 0:02:46.3]}
29. b6 {[%clk 0:01:30.3]} 29... Nd7 {[%clk 0:02:45.5]} 30. b7 {[%clk 0:01:28.5]}
30... Nc7 {[%clk 0:02:45.6]} 31. Ba7 {[%clk 0:01:25.1]} 31... Na6 {[%clk
0:02:44.6]} 32. Nd5 {[%clk 0:01:16.2]} 32... Kf7 {[%clk 0:02:43.4]} 33. Nb6
{[%clk 0:01:14.5]} 33... Ndb8 {[%clk 0:02:39.9]} 34. Na8 {[%clk 0:01:04.9]}
34... Ke7 {[%clk 0:02:32.6]} 35. Nc7 {[%clk 0:01:01.3]} 35... Nxc7 {[%clk
0:02:19.9]} 36. Bxb8 {[%clk 0:01:00.7]} 36... Kd7 {[%clk 0:02:19.9]} 37. Ba7
{[%clk 0:00:59.4]} 37... Na6 {[%clk 0:02:19.6]} 38. b8=Q {[%clk 0:00:59.1]}
38... Nxb8 {[%clk 0:02:20]} 39. Bxb8 {[%clk 0:00:59.1]} 39... Kc6 {[%clk
0:02:20.5]} 40. Kf2 {[%clk 0:00:57.6]} 1-0

[Event "*** SCC Grand Prix: Titled Tuesday Blitz"]
[Site "Chess.com"]
[Date "2020.06.02"]
[Round "10"]
[White "amelia91"]
[Black "kasparicy"]
[Result "0-1"]
[WhiteElo "1974"]
[BlackElo "2210"]
[TimeControl "180+1"]
[EndTime "11:55:45 PDT"]
[Termination "kasparicy won by resignation"]

1. d4 {[%clk 0:03:00.9]} 1... Nf6 {[%clk 0:02:57.4]} 2. Nf3 {[%clk 0:03:00.6]}
2... g6 {[%clk 0:02:57.8]} 3. e3 {[%clk 0:03:00.5]} 3... Bg7 {[%clk 0:02:57.5]}
4. c4 {[%clk 0:03:00.8]} 4... O-O {[%clk 0:02:55.2]} 5. Nc3 {[%clk 0:03:00.6]}
5... d5 {[%clk 0:02:51.7]} 6. Be2 {[%clk 0:03:00.6]} 6... c5 {[%clk 0:02:51.2]}
7. O-O {[%clk 0:03:00.4]} 7... b6 {[%clk 0:02:51.5]} 8. dxc5 {[%clk 0:02:56.2]}
8... dxc4 {[%clk 0:02:51.1]} 9. cxb6 {[%clk 0:02:53.7]} 9... Qxb6 {[%clk
0:02:50.1]} 10. Qa4 {[%clk 0:02:51.5]} 10... Bb7 {[%clk 0:02:33.1]} 11. Qxc4
{[%clk 0:02:44.6]} 11... Nc6 {[%clk 0:02:31.5]} 12. Na4 {[%clk 0:02:41.6]} 12...
Qa5 {[%clk 0:02:11.9]} 13. Bd2 {[%clk 0:02:34.5]} 13... Qh5 {[%clk 0:02:01.3]}
14. Nc5 {[%clk 0:02:31.5]} 14... Bc8 {[%clk 0:01:59.3]} 15. Nd4 {[%clk
0:02:19.9]} 15... Ne5 {[%clk 0:01:49.6]} 16. Qb5 {[%clk 0:01:48.4]} 16... Bg4
{[%clk 0:01:43.7]} 17. f3 {[%clk 0:01:34.8]} 17... Rab8 {[%clk 0:01:42.3]} 18.
Qa5 {[%clk 0:01:20.7]} 18... Bc8 {[%clk 0:01:32.3]} 19. Bc3 {[%clk 0:01:09.1]}
19... Nd5 {[%clk 0:01:27.1]} 20. Qc7 {[%clk 0:00:55.3]} 20... Nxc7 {[%clk
0:01:26.1]} 0-1

[Event "*** SCC Grand Prix: Titled Tuesday Blitz"]
[Site "Chess.com"]
[Date "2020.06.02"]
[Round "10"]
[White "Azatic"]
[Black "Oneofmyturns"]
[Result "1-0"]
[WhiteElo "2472"]
[BlackElo "2604"]
[TimeControl "180+1"]
[EndTime "11:55:48 PDT"]
[Termination "Azatic won by checkmate"]

1. e4 {[%clk 0:03:00.9]} 1... e5 {[%clk 0:02:56.4]} 2. Nf3 {[%clk 0:03:00.9]}
2... Nc6 {[%clk 0:02:56.5]} 3. Bb5 {[%clk 0:03:01.1]} 3... a6 {[%clk 0:02:57]}
4. Ba4 {[%clk 0:03:01]} 4... Nf6 {[%clk 0:02:57.5]} 5. O-O {[%clk 0:03:01.4]}
5... b5 {[%clk 0:02:57.9]} 6. Bb3 {[%clk 0:03:01.4]} 6... Bc5 {[%clk 0:02:58.5]}
7. c3 {[%clk 0:03:01.5]} 7... d6 {[%clk 0:02:58.5]} 8. d4 {[%clk 0:03:02.1]}
8... Bb6 {[%clk 0:02:58.6]} 9. Bg5 {[%clk 0:03:02.7]} 9... h6 {[%clk 0:02:45.6]}
10. Bh4 {[%clk 0:03:02.2]} 10... g5 {[%clk 0:02:12.2]} 11. Bg3 {[%clk 0:02:53]}
11... exd4 {[%clk 0:02:11.2]} 12. cxd4 {[%clk 0:02:52]} 12... Bg4 {[%clk
0:02:11.3]} 13. e5 {[%clk 0:02:00]} 13... Nh5 {[%clk 0:02:08.2]} 14. exd6 {[%clk
0:01:48.2]} 14... cxd6 {[%clk 0:02:04.7]} 15. Bd5 {[%clk 0:01:44.7]} 15... Nxd4
{[%clk 0:01:59.9]} 16. Qe1+ {[%clk 0:01:43.6]} 16... Kd7 {[%clk 0:01:54.2]} 17.
Nxd4 {[%clk 0:01:42.3]} 17... Nxg3 {[%clk 0:01:36.4]} 18. hxg3 {[%clk
0:01:25.5]} 18... Bxd4 {[%clk 0:01:34.4]} 19. Qe4 {[%clk 0:01:05.8]} 19... Bxb2
{[%clk 0:01:34.6]} 20. Qxg4+ {[%clk 0:01:05.5]} 20... Kc7 {[%clk 0:01:35.3]} 21.
Bxa8 {[%clk 0:00:59.2]} 21... Qxa8 {[%clk 0:01:36.2]} 22. Nd2 {[%clk 0:00:57.1]}
22... Bxa1 {[%clk 0:01:36.5]} 23. Rxa1 {[%clk 0:00:55.4]} 23... Qd5 {[%clk
0:01:37.4]} 24. Rc1+ {[%clk 0:00:52.3]} 24... Kb6 {[%clk 0:01:35.3]} 25. Qd7
{[%clk 0:00:50.3]} 25... Qxd2 {[%clk 0:01:31.9]} 26. Qc7# {[%clk 0:00:50.1]} 1-0